{"text_format":"1","workbook":"xlsx","n_sheets":3,"sheets":["Feuil1","Feuil2","Feuil3"],"not_rendered":{"charts":0,"images":0,"macros":1,"external_links":0,"defined_names":0,"comments":0,"pivot_tables":0},"unopened":[],"bounds":{"document_bytes":16777216,"sheet_cells":100000,"rows_first":2000,"rows_last":500,"rows_between":2000,"halvings":0,"cell_chars":16384,"cell_head_chars":4096},"cells_cut":0,"cells_raw":0,"read":"whole","date_system":"1900"}

{"sheet":"Feuil1","index":0,"n_rows":50,"n_cols":1,"rows_kept":50,"cut":false,"hidden":false,"merged":[]}
[{"$f":"IFERROR(HYPERLINK(sisurvolcellule(ROW(),COLUMN()),\"10 000 days.avi\"),\"10 000 days.avi\")","v":"10 000 days.avi"}]
[{"$f":"IFERROR(HYPERLINK(sisurvolcellule(ROW(),COLUMN()),\"10 000.avi\"),\"10 000.avi\")","v":"10 000.avi"}]
[{"$f":"IFERROR(HYPERLINK(sisurvolcellule(ROW(),COLUMN()),\"100 degrés below zéro.avi\"),\"100 degrés below zéro.avi\")","v":"100 degrés below zéro.avi"}]
[{"$f":"IFERROR(HYPERLINK(sisurvolcellule(ROW(),COLUMN()),\"100 feet.avi\"),\"100 feet.avi\")","v":"100 feet.avi"}]
[{"$f":"IFERROR(HYPERLINK(sisurvolcellule(ROW(),COLUMN()),\"11 14 onze heures quatorze.avi\"),\"11 14 onze heures quatorze.avi\")","v":"11 14 onze heures quatorze.avi"}]
[{"$f":"IFERROR(HYPERLINK(sisurvolcellule(ROW(),COLUMN()),\"12 heures stolen.avi\"),\"12 heures stolen.avi\")","v":"12 heures stolen.avi"}]
[{"$f":"IFERROR(HYPERLINK(sisurvolcellule(ROW(),COLUMN()),\"12 rounds 2.avi\"),\"12 rounds 2.avi\")","v":"12 rounds 2.avi"}]
[{"$f":"IFERROR(HYPERLINK(sisurvolcellule(ROW(),COLUMN()),\"12 rounds.avi\"),\"12 rounds.avi\")","v":"12 rounds.avi"}]
[{"$f":"IFERROR(HYPERLINK(sisurvolcellule(ROW(),COLUMN()),\"13 assassins.avi\"),\"13 assassins.avi\")","v":"13 assassins.avi"}]
[{"$f":"IFERROR(HYPERLINK(sisurvolcellule(ROW(),COLUMN()),\"13 dead men.avi\"),\"13 dead men.avi\")","v":"13 dead men.avi"}]
[{"$f":"IFERROR(HYPERLINK(sisurvolcellule(ROW(),COLUMN()),\"13 hours the secret soldiers of.avi\"),\"13 hours the secret soldiers of.avi\")","v":"13 hours the secret soldiers of.avi"}]
[{"$f":"IFERROR(HYPERLINK(sisurvolcellule(ROW(),COLUMN()),\"13 hrs.avi\"),\"13 hrs.avi\")","v":"13 hrs.avi"}]
[{"$f":"IFERROR(HYPERLINK(sisurvolcellule(ROW(),COLUMN()),\"13 jeux de mort.avi\"),\"13 jeux de mort.avi\")","v":"13 jeux de mort.avi"}]
[{"$f":"IFERROR(HYPERLINK(sisurvolcellule(ROW(),COLUMN()),\"13 sins.avi\"),\"13 sins.avi\")","v":"13 sins.avi"}]
[{"$f":"IFERROR(HYPERLINK(sisurvolcellule(ROW(),COLUMN()),\"13 tzameti jason.avi\"),\"13 tzameti jason.avi\")","v":"13 tzameti jason.avi"}]
[{"$f":"IFERROR(HYPERLINK(sisurvolcellule(ROW(),COLUMN()),\"13 tzameti.avi\"),\"13 tzameti.avi\")","v":"13 tzameti.avi"}]
[{"$f":"IFERROR(HYPERLINK(sisurvolcellule(ROW(),COLUMN()),\"2000 maniacs.avi\"),\"2000 maniacs.avi\")","v":"2000 maniacs.avi"}]
[{"$f":"IFERROR(HYPERLINK(sisurvolcellule(ROW(),COLUMN()),\"2010 l'année du premier contact.avi\"),\"2010 l'année du premier contact.avi\")","v":"2010 l'année du premier contact.avi"}]
[{"$f":"IFERROR(HYPERLINK(sisurvolcellule(ROW(),COLUMN()),\"2012 terre brulée.avi\"),\"2012 terre brulée.avi\")","v":"2012 terre brulée.avi"}]
[{"$f":"IFERROR(HYPERLINK(sisurvolcellule(ROW(),COLUMN()),\"2012.avi\"),\"2012.avi\")","v":"2012.avi"}]
[{"$f":"IFERROR(HYPERLINK(sisurvolcellule(ROW(),COLUMN()),\"2033 future apocalypse.avi\"),\"2033 future apocalypse.avi\")","v":"2033 future apocalypse.avi"}]
[{"$f":"IFERROR(HYPERLINK(sisurvolcellule(ROW(),COLUMN()),\"22 minutes.avi\"),\"22 minutes.avi\")","v":"22 minutes.avi"}]
[{"$f":"IFERROR(HYPERLINK(sisurvolcellule(ROW(),COLUMN()),\"3 days to kill.avi\"),\"3 days to kill.avi\")","v":"3 days to kill.avi"}]
[{"$f":"IFERROR(HYPERLINK(sisurvolcellule(ROW(),COLUMN()),\"30 days of night.avi\"),\"30 days of night.avi\")","v":"30 days of night.avi"}]
[{"$f":"IFERROR(HYPERLINK(sisurvolcellule(ROW(),COLUMN()),\"300 la naissance d'un empire.avi\"),\"300 la naissance d'un empire.avi\")","v":"300 la naissance d'un empire.avi"}]
[{"$f":"IFERROR(HYPERLINK(sisurvolcellule(ROW(),COLUMN()),\"300.avi\"),\"300.avi\")","v":"300.avi"}]
[{"$f":"IFERROR(HYPERLINK(sisurvolcellule(ROW(),COLUMN()),\"40 days and 40 nights.avi\"),\"40 days and 40 nights.avi\")","v":"40 days and 40 nights.avi"}]
[{"$f":"IFERROR(HYPERLINK(sisurvolcellule(ROW(),COLUMN()),\"40 days and nights.avi\"),\"40 days and nights.avi\")","v":"40 days and nights.avi"}]
[{"$f":"IFERROR(HYPERLINK(sisurvolcellule(ROW(),COLUMN()),\"400 days.avi\"),\"400 days.avi\")","v":"400 days.avi"}]
[{"$f":"IFERROR(HYPERLINK(sisurvolcellule(ROW(),COLUMN()),\"47 ronin.avi\"),\"47 ronin.avi\")","v":"47 ronin.avi"}]
[{"$f":"IFERROR(HYPERLINK(sisurvolcellule(ROW(),COLUMN()),\"51.avi\"),\"51.avi\")","v":"51.avi"}]
[{"$f":"IFERROR(HYPERLINK(sisurvolcellule(ROW(),COLUMN()),\"7 boxes.avi\"),\"7 boxes.avi\")","v":"7 boxes.avi"}]
[{"$f":"IFERROR(HYPERLINK(sisurvolcellule(ROW(),COLUMN()),\"7 days to live.avi\"),\"7 days to live.avi\")","v":"7 days to live.avi"}]
[{"$f":"IFERROR(HYPERLINK(sisurvolcellule(ROW(),COLUMN()),\"7 th floor.avi\"),\"7 th floor.avi\")","v":"7 th floor.avi"}]
[{"$f":"IFERROR(HYPERLINK(sisurvolcellule(ROW(),COLUMN()),\"75 secondes pour survivre.avi\"),\"75 secondes pour survivre.avi\")","v":"75 secondes pour survivre.avi"}]
[{"$f":"IFERROR(HYPERLINK(sisurvolcellule(ROW(),COLUMN()),\"8 mm 2.avi\"),\"8 mm 2.avi\")","v":"8 mm 2.avi"}]
[{"$f":"IFERROR(HYPERLINK(sisurvolcellule(ROW(),COLUMN()),\"8 mm.avi\"),\"8 mm.avi\")","v":"8 mm.avi"}]
[{"$f":"IFERROR(HYPERLINK(sisurvolcellule(ROW(),COLUMN()),\"80 minutes.avi\"),\"80 minutes.avi\")","v":"80 minutes.avi"}]
[{"$f":"IFERROR(HYPERLINK(sisurvolcellule(ROW(),COLUMN()),\"88 minutes.avi\"),\"88 minutes.avi\")","v":"88 minutes.avi"}]
[{"$f":"IFERROR(HYPERLINK(sisurvolcellule(ROW(),COLUMN()),\"9 millimeter.avi\"),\"9 millimeter.avi\")","v":"9 millimeter.avi"}]
[{"$f":"IFERROR(HYPERLINK(sisurvolcellule(ROW(),COLUMN()),\"a certain justice.avi\"),\"a certain justice.avi\")","v":"a certain justice.avi"}]
[{"$f":"IFERROR(HYPERLINK(sisurvolcellule(ROW(),COLUMN()),\"a company man.avi\"),\"a company man.avi\")","v":"a company man.avi"}]
[{"$f":"IFERROR(HYPERLINK(sisurvolcellule(ROW(),COLUMN()),\"a contre courant.avi\"),\"a contre courant.avi\")","v":"a contre courant.avi"}]
[{"$f":"IFERROR(HYPERLINK(sisurvolcellule(ROW(),COLUMN()),\"a dangerous man.avi\"),\"a dangerous man.avi\")","v":"a dangerous man.avi"}]
[{"$f":"IFERROR(HYPERLINK(sisurvolcellule(ROW(),COLUMN()),\"a dark truth.avi\"),\"a dark truth.avi\")","v":"a dark truth.avi"}]
[{"$f":"IFERROR(HYPERLINK(sisurvolcellule(ROW(),COLUMN()),\"a day of violence.avi\"),\"a day of violence.avi\")","v":"a day of violence.avi"}]
[{"$f":"IFERROR(HYPERLINK(sisurvolcellule(ROW(),COLUMN()),\"a day to kill.avi\"),\"a day to kill.avi\")","v":"a day to kill.avi"}]
[{"$f":"IFERROR(HYPERLINK(sisurvolcellule(ROW(),COLUMN()),\"a gangsters tale.avi\"),\"a gangsters tale.avi\")","v":"a gangsters tale.avi"}]
[{"$f":"IFERROR(HYPERLINK(sisurvolcellule(ROW(),COLUMN()),\"a good man.avi\"),\"a good man.avi\")","v":"a good man.avi"}]
[{"$f":"IFERROR(HYPERLINK(sisurvolcellule(ROW(),COLUMN()),\"a hard day.avi\"),\"a hard day.avi\")","v":"a hard day.avi"}]

{"sheet":"Feuil2","index":1,"n_rows":0,"n_cols":0,"rows_kept":0,"cut":false,"hidden":false,"merged":[]}

{"sheet":"Feuil3","index":2,"n_rows":0,"n_cols":0,"rows_kept":0,"cut":false,"hidden":false,"merged":[]}